Cogmind - Beta 12 @@@ ROGUE MODE // 2023.11.14 @ 18:49:48 Player: MARESCHIZO Result: Destroyed by G-34 Mercenary with Small Laser Performance ------------- Evolutions (0) 0 Regions Visited (1) 200 Robots Destroyed (8) 40 Value Destroyed (237) 237 Prototype IDs (0) 0 Alien Tech Used (0) 0 Bonus (0) 0 TOTAL SCORE: 477 Bonus ------- None Cogmind --------- Core Integrity 0/250 Matter 205/300 Energy 160/160 System Corruption 2% Temperature Cool (16) Movement Walking (120) Location -10/Materials Parts ------- > --- POWER (1) -------- Light Nuclear Core > --- PROPULSION (2) --- Aluminum Leg Aluminum Leg > --- UTILITY (2) ------ Heat Sink Improved Heat Sink > --- WEAPON (2) ------- Small Laser > --- INVENTORY (5) ---- Heat Sink Heat Sink Peak State ------------ > --- POWER ------------ Light Nuclear Core > --- PROPULSION ------- Aluminum Leg Aluminum Leg > --- UTILITY ---------- Heat Sink Improved Heat Sink > --- WEAPON ----------- Small Laser > --- INVENTORY -------- Heat Sink Heat Sink [Rating: 10] Favorites ----------- Power Light Ion Engine Engine Light Ion Engine Power Core Light Nuclear Core Propulsion Flight Unit Leg Aluminum Leg Wheel Compact Wheel Flight Unit Flight Unit Utility Heat Sink Device Heat Sink Storage High-capacity Matter Pod Weapon Light Assault Rifle Energy Gun Medium Laser Ballistic Gun Light Assault Rifle Build | -11 -10 ------- Run | Jun Mat Slots Evolved . | . . Power . | . . Propulsion . | . . Utility . | . . Weapon . | . . Parts Attached 18 | 5 13 Power 3 | 1 2 Engine 2 | 1 1 Core 1 | . 1 Reactor . | . . Propulsion 6 | 2 4 Treads . | . . Leg 2 | . 2 Wheel 2 | 2 . Hover . | . . Flight 2 | . 2 Utility 5 | . 5 Device 3 | . 3 Storage 2 | . 2 Processor . | . . Hackware . | . . Protection . | . . Artifact . | . . Weapon 4 | 2 2 Energy Gun 3 | 2 1 Energy Cannon . | . . Ballistic Gun 1 | . 1 Ballistic Cannon . | . . Launcher . | . . Special Weapon . | . . Impact Weapon . | . . Slashing Weapon . | . . Piercing Weapon . | . . Special Melee Weapon . | . . Unidentified Prototypes . | . . Parts Lost 4 | . 4 Power 1 | . 1 Propulsion 2 | . 2 Utility . | . . Weapon 1 | . 1 Highest Loss Streak 2 | . 2 To Critical Strikes . | . . Average Slot Usage (%) 65 | . 65 Engine 3 | . 3 Core 2 | . 2 Leg 3 | . 3 Wheel 9 | . 9 Flight 12 | . 12 Device 8 | . 8 Storage 9 | . 9 Energy Gun 9 | . 9 Ballistic Gun 6 | . 6 Naked Turns . | . . Heaviest Build 17 | 7 17 Greatest Support 26 | 26 26 Greatest Overweight (x) 1 | . 1 Average Overweight (x) . | . . Largest Inventory Capacity 10 | 5 10 Average Capacity 6 | 5 6 Most Carried 7 | 4 7 Average Carried 1 | . 1 Final Capacity 5 | 5 5 Final Carried 2 | . 2 Class Distribution -------------------- 52% | Mutant 47% | Scavenger-Mutant Dominant Class ---------------- Scavenger-Mutant | -10/Materials Resources | -11 -10 ----------- Run | Jun Mat Matter Collected 291 | 125 166 Remotely . | . . Salvage Created 299 | . 299 Parts 14 | . 14 Haulers Intercepted . | . . Recyclers Shooed . | . . Parts Field Recycled . | . . Retrieved Matter . | . . Parts Self-Destructed . | . . Prevented . | . . Kills | -11 -10 ------- Run | Jun Mat Combat Hostiles Destroyed 8 | . 8 Guns 8 | . 8 Classes Destroyed 2 | . 2 Swarmer 2 | . 2 Grunt 6 | . 6 Best Kill Streak 5 | . 5 Combat Bots Only 5 | . 5 Max Kills in Single Turn 1 | . 1 Gunslinging . | . . Exploded . | . . Melee . | . . Uniques/NPCs Destroyed . | . . Combat | -11 -10 -------- Run | Jun Mat Damage Taken 618 | . 618 Core 258 | . 258 Absorbed by Shields . | . . Core Remaining (%) 100 | 100 . Volleys Fired 44 | . 44 Largest 2 | . 2 Hottest 90 | . 90 Shots Fired 52 | . 52 Gun 52 | . 52 Cannon . | . . Launcher . | . . Special . | . . Kinetic 26 | . 26 Thermal 18 | . 18 Explosive . | . . Electromagnetic 8 | . 8 Robot Hit Streak 13 | . 13 Robot Miss Streak 3 | . 3 Penetration Max . | . . Secondary Targets 1 | . 1 Max Gunslinging Chain 1 | . 1 Shots Hit Robots 38 | . 38 Core Hits 20 | . 20 Critical Kills . | . . Critical Parts Destroyed . | . . Critical Strikes . | . . Melee Attacks . | . . Impact . | . . Slashing . | . . Piercing . | . . Sneak Attacks . | . . Combat Hostiles . | . . Follow-up Attacks . | . . Damage Inflicted 382 | . 382 Guns 382 | . 382 Cannons . | . . Explosions . | . . Melee . | . . Ramming . | . . Kinetic 150 | . 150 Thermal 170 | . 170 Explosive . | . . Electromagnetic 62 | . 62 Impact . | . . Slashing . | . . Piercing . | . . Highest Corruption 2 | . 2 Average Corruption 2 | . 2 Corruption Purged . | . . Corruption Blocked . | . . Effects 2 | . 2 Heat Flow Errors 1 | . 1 Energy Discharges 1 | . 1 Overload Shots . | . . Overflow Damage . | . . Projectiles . | . . Explosions . | . . Melee . | . . Knockbacks . | . . Impact . | . . Kinetic . | . . Secondary . | . . Self-Inflicted Damage . | . . Shots . | . . Rammed . | . . Targets Rammed . | . . Kicked . | . . Crushed . | . . Highest Temperature 235 | . 235 Average Temperature 120 | . 120 Received Heat Transfer 333 | . 333 Effects 2 | . 2 Energy Bleed 2 | . 2 Siege Activations . | . . Robots Corrupted . | . . Combat Hostiles . | . . Parts Fried . | . . Impact Corruptions . | . . Robots Melted . | . . Combat Hostiles . | . . Parts Melted . | . . Heat Transferred 482 | . 482 Parts Sabotaged . | . . Parts Stolen . | . . Parts Stripped . | . . Power Chain Reactions . | . . Missiles Intercepted . | . . Alert | -11 -10 ------- Run | Jun Mat Peak Influence 155 | . 155 Initial . | . . Average 78 | . 84 Maximum Alert Level . | . . Low Security (%) 100 | 100 100 Level 1 . | . . Level 2 . | . . Level 3 . | . . Level 4 . | . . Level 5 . | . . High Security . | . . Max Security . | . . Squads Dispatched 2 | . 2 Investigation 2 | . 2 Extermination . | . . Reinforcement . | . . Assault . | . . Garrison . | . . Intercept . | . . Searches Triggered . | . . Construction Impeded . | . . Haulers Reinforced . | . . Active Scanning Responses . | . . Cargo Convoy Interrupts . | . . Stealth | -11 -10 --------- Run | Jun Mat Distress Signals . | . . Communications Jammed . | . . Distress Signals . | . . Times Spotted 11 | . 11 Peak Tracking Total 5 | . 5 Tactical Retreats . | . . Traps | -11 -10 ------- Run | Jun Mat Traps Triggered 2 | . 2 Indirectly . | . . Trap Hack Attempts . | . . Triggered . | . . Disarmed . | . . Reprogrammed . | . . Reused . | . . Traps Extracted . | . . Installed . | . . Triggered . | . . Machines | -11 -10 ---------- Run | Jun Mat Machines Disabled . | . . Max in Single Turn . | . . Machines Repaired . | . . Machines Sabotaged . | . . Overloaded Fab Kills . | . . Hacking | -11 -10 --------- Run | Jun Mat Machines Accessed 1 | . 1 Terminals . | . . Fabricators . | . . Repair Stations . | . . Recycling Units 1 | . 1 Scanalyzers . | . . Garrison Access . | . . Total Hacks 2 | . 2 Successful . | . . Failed 2 | . 2 Catastrophic 2 | . 2 Database Lockouts . | . . Manual . | . . Terminals . | . . Fabricators . | . . Repair Stations . | . . Recycling Units 2 | . 2 Scanalyzers . | . . Garrison Access . | . . Terminal Hacks . | . . Fabricator Hacks . | . . Repair Station Hacks . | . . Recycling Unit Hacks . | . . Scanalyzer . | . . Garrison Access Hacks . | . . Unauthorized Hacks . | . . Terminals . | . . Fabricators . | . . Repair Stations . | . . Recycling Units . | . . Scanalyzers . | . . Garrison Access . | . . Data Cores Recovered . | . . Used . | . . Hacking Detections 1 | . 1 Full Trace Events 1 | . 1 Feedback Events . | . . Feedback Blocked . | . . Robot Schematics Acquired . | . . Robots Built . | . . Authchips . | . . Time . | . . Total Robot Build Rating . | . . Part Schematics Acquired . | . . Parts Built . | . . Authchips . | . . Time . | . . Total Part Build Rating . | . . Parts Repaired . | . . Time . | . . Parts Recycled . | . . Recycled Matter . | . . Retrieved Matter . | . . Retrieved Components . | . . Parts Scanalyzed . | . . Part Schematics Acquired . | . . Parts Damaged . | . . Bothacking | -11 -10 ------------ Run | Jun Mat Used RIF Installer . | . . Robots Hacked . | . . Non-combat . | . . Combat . | . . Robot Hacks Applied . | . . Relay Couplers Released . | . . Fabnet Peak Effective % . | . . Robots Rewired . | . . Allies Hacked . | . . Hacks Repelled . | . . Allies | -11 -10 -------- Run | Jun Mat Total Allies . | . . Largest Group . | . . Highest-Rated Group . | . . Highest-Rated Ally . | . . Total Orders . | . . Ally Attacks . | . . Total Damage . | . . Kills . | . . Allies Corrupted . | . . Allies Melted . | . . Intel | -11 -10 ------- Run | Jun Mat Robot Analysis Total . | . . Derelict Logs Recovered . | . . Drone Launches . | . . Drone Recoveries . | . . Exploration | -11 -10 ------------- Run | Jun Mat Turns Passed 390 | 30 360 Spaces Moved 201 | 27 174 Core 21 | 9 12 Treads . | . . Legs 17 | . 17 Wheels 106 | 18 88 Hover . | . . Flight 57 | . 57 Fastest Speed 37 | 50 37 Average Speed 76 | 76 76 Slowest Speed 120 | 90 120 Overloaded Moves . | . . Propulsion Burnouts . | . . Robots Hopped . | . . Cave-ins Triggered . | . . Exploration Rate (%) 16 | 4 28 Regions Visited 1 Branch Regions . Pre-discovered Areas . | . . Known Exits Taken . | . . Unknown Exits Taken 1 | 1 . Scrap Searched . | . . Spaces Dug . | . . Terrain Destroyed . | . . Melee . | . . Projectile . | . . AOE . | . . Terrain Rammed . | . . Walls Destroyed . | . . Machines Disabled . | . . Actions | -11 -10 --------- Run | Jun Mat Total 394 | 36 358 Wait 106 | . 106 Move 200 | 26 174 Hop . | . . Pick Up 18 | 5 13 Fast Attach 2 | . 2 Attach 16 | 5 11 Detach . | . . Swap . | . . Drop 8 | . 8 Fire 44 | . 44 Melee . | . . Ram . | . . Kick . | . . Crush . | . . Escape Stasis . | . . Rewire . | . . Trap . | . . Miscellaneous . | . . Route ------- -11/Junkyard -10/Materials (discovered 1 exit: [*Mat]) History --------- Turn | Location | Event 7 | -11/Junkyard | Discovered new exit (range 16) 31 | -11/Junkyard | Entered Materials 282 | -10/Materials | Discovered new exit (range 10) 308 | -10/Materials | Core integrity fell below 50% 325 | -10/Materials | Core integrity fell below 20% 391 | -10/Materials | Destroyed by G-34 Mercenary with Small Laser Last Messages --------------- 00344_ The floor emits a surge of raw power. 00344_ System corrupted (+2). 00344_ R-06 Scavenger collects Hcp. Matter Pod. 00345_ Acquired Sml. Laser. 00345_ U-05 Engineer lays Concrete. 00347_ Acquired Aluminum Leg. 00348_ R-06 Scavenger collects Heat Sink. 00349_ K-01 Serf collects debris. 00351_ System corrupted: Energy discharge (-40). 00351_ Acquired Imp. Heat Sink. 00353_ K-01 Serf collects debris. 00355_ Acquired Aluminum Leg. 00357_ K-01 Serf collects debris. 00369_ R-06 Scavenger inserts Heat Sink into recycling unit. 00378_ Connecting with Recycling Unit... 00378_ Current location identified: Materials 00378_ ALERT: Suspicious activity at Recycling Unit M001. Dispatching Investigation squad. 00381_ System corrupted: Heat flow error (+260). 00382_ Overheating: Energy bleed (-17). Map ----- +----------------------------------------------------+ | ?????????????????????????????????????????????????? | | ?????????????????????????????????????????????????? | | ?????????????????????????????????????????????????? | | ?????????????????????????????????????????????????? | | ?????????????????????????????????????????????????? | | ?????????????????????????????????????? ??????????? | | ????????????????????????????????????? "??? "?????? | | ???????????????????????????????????? """ ""????? | | ???????????????????????????????????? """ """ ??? | | ???????????????????????????????????# ??? | | ??????????????????????????#????????# ???? | | ??????????????????????????# ???????# ????? | | ??????????????????????????# ""????+ ?????? | | ??????????????????????????# """???# ??????? | | ???????????????????????????? """???# ???????## | | ????????????????????????????? ???# #????????# | | ????????????????????????????###+#### #????????# | | ???????????????????########## #?????##?# | | ????????????????? ^ #????? ?# | | ????????????????? ^ #??? ?# | | ????????????????? #????"""?# | | ????????????????????######### [ #????""" # | | ??????????????????????######## """ #?????"" # | | ??????????????????????# """ # """ #?????? # | | ??????????????????????# "Y" # """ ########+## | | ??????????????????????# "@" + | | ??????????????????????# g # ! | | ??????????????????????# ! g # < #########+####### | | ??????????????????????# # #?????? ?# | | ??????????????????????############???? # | | ???????????????????????????????????? # | | ??????????????????????????????????# # | | ??????????????????????????????????# # | | ??????????????????????????????????# # | | ??????????????????????????????????# # | | ??????????????????????????????????################ | | | | | | | | | | | | | | | | | | | | | | | | | | | | | +----------------------------------------------------+ Best States ------------- Heat Dissipation 49 Energy Generation 14 Energy Capacity 250 Matter Stores 300 Matter Capacity 500 Sight Range 16 Terrain Scan Density 10 Evasion (%) 62 Item Schematics ----------------- None Robot Schematics ------------------ None Fabricated ------------ Nothing Alien Tech Used ----------------- None Achievements -------------- None Challenges ------------ None Game ------ Seed CouplerBehemothDatajack Manual? 0 Play Time 00:09:04 Cumulative 17.7 hours Start 2023.11.14 @ 18:42:42 End 2023.11.14 @ 18:49:48 Sessions 1 Manual Loads 0 Difficulty Rogue Special Mode None Game No. 51 Rogue 11 Adventurer 14 Explorer 26 Win Type - Total 0 Types 0/0/0/0/0/0/0/0/0 Lore% 13 Gallery% 24 Achievement% 19 Wizard Run 0 Options --------- ASCII 0 Keyboard 0 Movement Mouse Keybinds 0 Fullscreen 1 Font 18/SmallcapsGlow Map View 76x50 Tactical HUD 1 Map Filters NONE Filters NONE Steam 1 RUN: 718a5141-e307-4d84-9d4c-35ca7145b106